bitfinex/quotes_ETHUSD_20250623
["timestamp","ask_amount","ask_price","bid_price","bid_amount"]
[1750673507042,0.6965453,2251.4,2251.3,0.8059]
[1750673507443,0.69655192,2251.4,2251.3,0.8059]
[1750673507644,0.55,2251.4,2251.3,0.8059]
[1750673507858,0.696556,2251.4,2251.3,0.8059]
[1750673508019,0.696556,2251.4,2251.0,0.7641]
[1750673508355,0.55,2251.2,2251.0,0.7641]
[1750673508670,0.69654083,2251.1,2251.0,0.7641]
[1750673509747,0.69655243,2251.1,2251.0,0.7641]
[1750673511117,0.69657995,2251.1,2251.0,0.7641]
[1750673511311,0.55,2251.1,2251.0,0.7641]
[1750673511618,0.55,2251.4,2251.0,0.7641]
[1750673511833,0.14661726,2251.3,2251.0,0.7641]
[1750673512028,0.14661726,2251.2,2251.0,0.7641]
[1750673512315,0.55,2251.3,2251.0,0.7641]
[1750673512638,0.14661056,2251.2,2251.0,0.7641]
[1750673512829,0.14661056,2251.1,2251.0,0.7641]
[1750673513033,0.14657435,2251.1,2251.0,0.7641]
[1750673513725,1.06473241,2251.6,2251.0,0.7641]
[1750673513726,0.55,2251.6,2251.0,0.7641]
[1750673513928,0.1465874,2251.5,2251.0,0.7641]
[1750673514112,0.14660197,2251.4,2251.0,0.7641]
[1750673514425,0.14659743,2251.3,2251.0,0.7641]
[1750673514620,0.55,2251.6,2251.0,0.7641]
[1750673514845,0.20212466,2251.5,2251.0,0.7641]
[1750673515019,0.14660393,2251.4,2251.0,0.7641]
[1750673515218,0.14660393,2251.3,2251.0,0.7641]
[1750673515413,0.14660393,2251.2,2251.0,0.7641]
[1750673515621,0.05552402,2251.5,2251.0,0.7641]
[1750673515849,0.1466073,2251.4,2251.0,0.7641]
[1750673516019,0.05552402,2251.5,2251.0,0.7641]
[1750673516020,0.1466102,2251.3,2251.0,0.7641]
[1750673516222,0.14663043,2251.2,2251.0,0.7641]
[1750673516434,0.55,2251.7,2251.0,0.7641]
[1750673516751,0.55,2251.5,2251.0,0.7641]
[1750673516917,0.14663288,2251.4,2251.0,0.7641]
[1750673517119,0.14663288,2251.3,2251.0,0.7641]
[1750673517440,0.14663288,2251.2,2251.0,0.7641]
[1750673517768,0.55,2251.5,2251.0,0.7641]
[1750673518052,0.14658858,2251.4,2251.0,0.7641]
[1750673518249,0.14658858,2251.3,2251.0,0.7641]
[1750673518448,0.05552405,2251.4,2251.0,0.7641]
[1750673518750,0.1465603,2251.3,2251.0,0.7641]
[1750673518950,0.05552405,2251.4,2251.0,0.7641]
[1750673518951,0.14656153,2251.2,2251.0,0.7641]
[1750673519255,0.55,2251.7,2251.0,0.7641]
[1750673519559,0.55,2251.5,2251.0,0.7641]
[1750673519846,0.14656469,2251.4,2251.0,0.7641]
[1750673520052,0.14656469,2251.3,2251.0,0.7641]
[1750673520348,0.55,2251.5,2251.0,0.7641]
[1750673520529,0.14656139,2251.4,2251.0,0.7641]
[1750673520731,0.14656114,2251.3,2251.0,0.7641]
[1750673520929,0.14654486,2251.2,2251.0,0.7641]
[1750673521131,0.0555241,2251.4,2251.0,0.7641]
[1750673521329,0.14652813,2251.3,2251.0,0.7641]
[1750673521538,0.14651554,2251.2,2251.0,0.7641]
[1750673521742,11.61473241,2251.5,2251.0,0.7641]
[1750673522253,0.5658,2252.0,2251.2,0.8263]
[1750673522551,0.5658,2252.0,2250.8,4.44278752]
[1750673522552,0.2020842,2251.9,2251.3,0.8263]
[1750673522737,0.696568,2251.8,2251.3,0.8263]
[1750673522939,0.146568,2251.7,2251.3,0.8263]
[1750673523144,0.146568,2251.6,2251.3,0.8263]
[1750673523342,0.55,2251.7,2251.3,0.8263]
[1750673523555,0.14650837,2251.6,2251.3,0.8263]
[1750673523759,0.5658,2252.4,2251.4,7.04290822]
[1750673523942,0.14658313,2252.3,2251.7,0.7813]
[1750673524142,7.60870822,2253.0,2251.9,0.8158]
[1750673524471,1.0645991,2253.4,2252.7,0.8158]
[1750673524670,10.31586582,2254.2,2252.9,0.7529]
[1750673524671,0.14666073,2253.3,2252.9,0.7529]
[1750673524960,5.15921948,2254.1,2253.1,0.7529]
[1750673524961,1.6303991,2254.1,2253.1,0.7529]
[1750673525309,10.0,2253.8,2253.1,0.7529]
[1750673525422,0.20213409,2253.7,2253.1,0.7529]
[1750673525623,0.14666102,2253.6,2253.1,0.7529]
[1750673525829,0.14666102,2253.6,2252.4,0.8178]
[1750673525830,10.20213933,2253.5,2252.4,0.8178]
[1750673526074,0.14664998,2253.4,2252.8,1.334611]
[1750673526234,0.14664998,2253.3,2252.8,1.334611]
[1750673526434,0.1466436,2253.2,2252.9,0.8178]
[1750673526627,0.5658,2253.6,2252.9,0.8178]
[1750673526950,0.14599289,2253.5,2252.9,0.8178]
[1750673527125,10.88166582,2253.9,2253.0,0.04438295]
[1750673527321,0.55,2253.7,2253.0,0.04438295]
[1750673527527,0.14599323,2253.6,2253.0,0.04438295]
[1750673527723,0.5658,2253.9,2252.9,0.8178]
[1750673527724,0.05547496,2253.8,2252.9,0.8178]
[1750673527958,0.21929959,2254.4,2252.8,1.334611]
[1750673527959,0.5658,2254.3,2253.2,0.8209]
[1750673528156,0.14597013,2254.2,2253.3,0.04436976]
[1750673528334,0.55,2254.1,2253.3,0.04436976]
[1750673528661,0.5658,2254.3,2253.4,0.7883]
[1750673528860,0.14593719,2254.2,2253.5,0.0443672]
[1750673529046,0.55,2254.4,2253.5,0.0443672]
[1750673529255,0.05545728,2254.3,2253.4,0.7883]
[1750673529452,0.55,2254.4,2253.5,0.04436582]
[1750673529762,0.47774082,2255.2,2253.8,0.8023]
[1750673529763,0.5658,2255.2,2253.8,0.8023]
[1750673529935,0.30190658,2255.1,2253.9,1.95847249]
[1750673530266,0.30190658,2255.1,2254.3,4.43594647]
[1750673530467,0.30190658,2255.1,2254.4,0.80434451]
[1750673530778,0.30190658,2255.1,2254.7,0.76]
[1750673530950,10.5658,2256.1,2254.8,0.04433652]
[1750673531149,0.5658,2256.1,2254.9,11.10606582]
[1750673531482,10.31586582,2256.5,2254.9,11.10606582]
[1750673531483,0.5658,2256.4,2255.0,0.83453362]
[1750673531629,0.5658,2256.4,2255.1,0.7808]
[1750673531831,0.23176588,2256.6,2255.3,0.7808]
[1750673532081,10.5658,2256.7,2255.5,0.7808]
[1750673532234,10.5658,2256.7,2255.6,0.04432663]
[1750673532235,0.5658,2256.7,2255.6,0.04432663]
[1750673532566,10.0,2256.3,2255.5,0.7808]
[1750673532756,0.05541325,2256.2,2255.5,0.7808]
[1750673533382,0.05541325,2256.2,2254.9,10.31586582]
[1750673533383,10.55,2255.7,2254.9,0.7565]
[1750673533592,0.55,2255.5,2254.9,0.7565]
[1750673533734,0.55,2255.5,2255.0,0.04434119]
[1750673534083,0.55,2255.5,2254.9,0.7565]
[1750673534301,0.05542649,2255.4,2254.9,0.7565]
[1750673534570,0.55,2255.3,2254.9,0.7565]
[1750673534728,0.55,2255.1,2254.9,0.7565]
[1750673535061,0.55,2255.1,2254.6,0.8051]
[1750673535662,0.55,2255.1,2253.6,8.02137194]
[1750673535663,0.55,2254.9,2253.6,8.02137194]
[1750673535866,0.05543562,2255.0,2254.1,0.5658]
[1750673535867,0.55,2254.7,2254.1,0.5658]
[1750673536068,0.55,2254.7,2254.3,0.8051]
[1750673536862,0.55,2254.9,2254.3,0.8051]
[1750673537256,0.55,2254.7,2254.3,0.8051]
[1750673537630,0.55,2254.8,2254.3,0.8051]
[1750673537837,0.05544566,2254.7,2254.0,0.8051]
[1750673538044,0.55,2254.9,2254.0,0.8051]
[1750673538252,0.05545011,2254.8,2254.0,0.8051]
[1750673538937,0.05545011,2254.8,2253.3,8.02137194]
[1750673538938,0.55,2254.5,2253.7,0.7671]
[1750673539133,0.5658,2254.6,2253.7,0.7671]
[1750673539134,0.55,2254.3,2253.7,0.7671]
[1750673539447,0.05545615,2254.4,2253.7,0.7671]
[1750673539448,0.55,2254.5,2253.8,0.04436487]
[1750673539641,0.55,2254.3,2253.8,0.04436487]
[1750673539889,8.02137194,2254.9,2253.8,0.04436487]
[1750673539890,0.5658,2254.9,2253.8,0.04436487]
[1750673540050,0.5658,2255.2,2253.9,0.7503]
[1750673540405,0.55,2255.1,2254.1,0.7503]
[1750673540678,0.55,2255.1,2254.2,0.04435231]
[1750673540861,10.0,2255.7,2254.2,0.04434949]
[1750673541066,10.0,2255.4,2254.1,0.7503]
[1750673541359,8.57137194,2254.9,2254.1,0.7503]
[1750673541687,0.55,2254.7,2254.1,0.7503]
[1750673541855,0.05545313,2254.6,2254.1,0.7503]
[1750673543069,0.55,2254.9,2254.1,0.7503]
[1750673543862,0.05545185,2254.8,2254.1,0.7503]
[1750673544267,0.55,2254.7,2254.1,0.7503]
[1750673544676,0.05544575,2254.6,2254.1,0.7503]
[1750673544878,0.55,2254.7,2254.1,0.7503]
[1750673545088,0.55,2254.5,2254.1,0.7503]
[1750673545551,0.55,2254.8,2254.1,0.7503]
[1750673545757,0.55,2254.9,2254.1,0.7503]
[1750673546372,0.05545044,2254.8,2254.1,0.7503]
[1750673547067,0.55,2254.7,2253.8,0.7859]
[1750673547270,0.55,2254.5,2253.8,0.7859]
[1750673547488,0.55,2254.3,2253.8,0.7859]
[1750673547807,10.0,2254.8,2253.8,0.7859]
[1750673547808,0.55,2254.7,2253.8,0.7859]
[1750673549508,0.55,2254.5,2253.8,0.7859]
[1750673549707,0.55,2254.3,2253.8,0.7859]
[1750673549857,0.55,2254.1,2253.8,0.7859]
[1750673550057,0.55,2253.9,2253.6,0.7859]
[1750673550477,0.55,2254.3,2253.6,0.7859]
[1750673551175,2.16678877,2254.7,2253.6,0.7859]
[1750673551376,0.20024423,2254.6,2253.6,0.7859]
[1750673551609,0.05545929,2254.6,2253.6,0.7859]
[1750673551789,0.55,2254.5,2253.6,0.7859]
[1750673551990,0.05545314,2254.4,2253.6,0.7859]
[1750673552298,0.55,2254.3,2253.6,0.7859]
[1750673552720,0.55,2254.1,2253.6,0.7859]
[1750673552932,0.55,2253.9,2253.6,0.7859]
[1750673553515,0.55,2253.7,2253.3,0.7691]
[1750673554030,0.55,2254.0,2253.3,0.7691]
[1750673554197,0.55,2253.8,2253.3,0.7691]
[1750673554769,0.55,2253.6,2253.3,0.7691]
[1750673554994,0.55,2253.4,2253.3,0.7691]
[1750673555300,0.55,2253.9,2253.3,0.7691]
[1750673555502,0.55,2253.7,2253.3,0.7691]
[1750673555917,0.55,2253.9,2253.3,0.7691]
[1750673556118,0.55,2253.7,2253.3,0.7691]
[1750673558273,0.05547037,2253.6,2253.3,0.7691]
[1750673559315,0.0554719,2253.6,2253.3,0.7691]
[1750673559508,0.55,2253.7,2253.3,0.7691]
[1750673559805,0.55,2253.5,2253.3,0.7691]
[1750673560208,0.55,2253.9,2253.3,0.7691]
[1750673560409,0.14547081,2253.8,2253.3,0.7691]
[1750673560609,0.55,2253.6,2253.3,0.7691]
[1750673561095,0.55,2254.0,2253.3,0.7691]
[1750673561303,0.14547359,2253.9,2253.3,0.7691]
[1750673561690,0.69546499,2253.8,2253.3,0.7691]
[1750673561886,0.55,2254.1,2253.3,0.7691]
[1750673562100,0.14546622,2254.0,2253.3,0.7691]
[1750673562315,0.2009363,2253.9,2253.3,0.7691]
[1750673562475,0.14546602,2253.8,2253.3,0.7691]
[1750673562675,0.55,2253.6,2253.3,0.7691]
[1750673563189,1.60287113,2254.0,2253.3,0.7691]
[1750673563390,0.14582984,2253.9,2253.3,0.7691]
[1750673563590,0.55,2253.7,2253.3,0.7691]
[1750673563790,0.14582908,2253.6,2253.3,0.7691]
[1750673564188,1.60287113,2253.9,2253.3,0.7691]
[1750673564393,0.55,2253.7,2253.3,0.7691]
[1750673564614,0.14605429,2253.6,2253.3,0.7691]
[1750673564792,0.55,2253.7,2253.3,0.7691]
[1750673565016,0.14605453,2253.6,2253.3,0.7691]
[1750673565199,0.55,2253.8,2253.3,0.7691]
[1750673565537,0.14605521,2253.7,2253.4,0.0443743]
[1750673565697,1.05287113,2254.3,2253.5,0.8173]
[1750673566029,0.55,2254.1,2253.5,0.8173]
[1750673566232,1.19896026,2254.0,2253.5,0.8173]
[1750673566531,0.69613423,2253.9,2253.5,0.8173]
[1750673566722,0.14613366,2253.8,2253.5,0.8173]
[1750673566897,0.55,2253.9,2253.5,0.8173]
[1750673567097,0.14613389,2253.8,2253.5,0.8173]
[1750673567281,1.10833376,2254.4,2253.6,0.7682]
[1750673567491,11.19900701,2254.3,2253.6,0.7682]
[1750673567742,0.55,2254.0,2253.6,0.7682]
[1750673567898,0.14613588,2253.9,2253.6,0.7682]
[1750673568088,0.14613588,2253.8,2253.6,0.7682]
[1750673568288,0.6054629,2254.0,2253.6,0.7682]
[1750673568488,0.55,2253.8,2253.2,0.7948]
[1750673568683,0.55,2253.6,2253.2,0.7948]
[1750673568918,0.55,2253.4,2253.2,0.7948]
[1750673569318,1.61151087,2253.8,2253.2,0.7948]
[1750673569521,0.55,2253.6,2253.2,0.7948]
[1750673569726,0.55,2253.7,2253.2,0.7948]
[1750673569892,0.14614735,2253.6,2253.2,0.7948]
[1750673570091,0.55,2253.8,2253.3,0.0443747]
[1750673570286,0.14614871,2253.7,2253.2,0.7948]
[1750673570592,0.14614871,2253.6,2253.3,0.0443747]
[1750673570788,0.55,2253.8,2253.3,0.0443747]
[1750673570983,0.14617016,2253.7,2253.3,0.0443747]
[1750673571189,0.14636275,2253.6,2253.1,0.7917]
[1750673571384,0.55,2253.8,2253.1,0.7917]
[1750673571584,0.14636315,2253.7,2253.3,0.824]
[1750673571805,0.14636315,2253.6,2253.3,0.824]
[1750673571999,0.55,2253.8,2253.4,0.04437253]
[1750673572217,0.14636361,2253.7,2253.3,0.824]
[1750673572390,0.14636361,2253.6,2253.3,0.824]
[1750673572586,0.55,2253.9,2253.4,0.04437255]
[1750673572924,0.14638601,2253.8,2253.4,0.04437255]
[1750673573127,0.14638601,2253.7,2253.4,0.04437254]
[1750673573354,0.14638601,2253.6,2253.4,0.04437254]
[1750673573495,0.55,2253.9,2253.4,0.04437254]
[1750673573695,0.14638567,2253.8,2253.4,0.04437254]
[1750673573898,0.14638567,2253.7,2253.4,0.04437254]
[1750673574132,0.14638567,2253.6,2253.4,0.04437254]
[1750673574435,0.14651615,2253.5,2253.4,0.04437254]
[1750673575496,0.14651599,2253.5,2253.4,0.04437254]
[1750673575697,0.14651599,2253.5,2253.3,0.824]
[1750673576033,0.55,2254.0,2253.3,0.824]
[1750673576335,0.55,2253.8,2253.3,0.824]
[1750673576629,0.14653348,2253.9,2253.3,0.824]
[1750673576630,0.14653348,2253.7,2253.3,0.824]
[1750673576793,0.14653416,2253.6,2253.3,0.824]
[1750673576993,0.14653416,2253.5,2253.3,0.824]
[1750673577197,0.60546839,2253.8,2253.3,0.824]
[1750673577433,0.14666432,2253.7,2253.3,0.824]
[1750673577637,0.14666432,2253.6,2253.3,0.824]
[1750673577841,0.14666432,2253.5,2253.3,0.824]
[1750673578137,0.60546839,2253.8,2253.3,0.824]
[1750673578319,0.1466638,2253.7,2253.3,0.824]
[1750673578538,0.14666379,2253.6,2253.3,0.824]
[1750673578736,0.14666379,2253.5,2253.3,0.824]
[1750673578941,0.60546839,2253.8,2253.3,0.824]
[1750673579251,0.14667511,2253.7,2253.3,0.824]
[1750673579534,0.60546839,2253.8,2253.3,0.824]
[1750673579535,0.14667511,2253.6,2253.3,0.8683747]
[1750673579738,0.55,2253.9,2253.3,0.8683747]
[1750673579934,0.14667701,2253.8,2253.3,0.824]
[1750673580158,0.14667701,2253.7,2253.3,0.86837253]
[1750673580435,1.06151087,2254.3,2253.4,0.7872]
[1750673580646,0.14672541,2254.2,2253.6,0.7872]
[1750673580847,0.14672536,2254.1,2253.6,0.7872]
[1750673581048,0.14672543,2254.0,2253.8,0.8042]
[1750673581248,0.14672548,2253.9,2253.8,0.8042]
[1750673581767,1.11696633,2254.3,2253.8,0.8042]
[1750673581768,0.55,2254.2,2253.8,0.8042]
[1750673582069,0.14663411,2254.1,2253.8,0.8042]
[1750673582221,0.14663416,2254.0,2253.8,0.8042]
[1750673582426,0.60545535,2254.3,2253.8,0.8042]
[1750673582772,0.14663402,2254.2,2253.8,0.8042]
[1750673582922,0.14663402,2254.1,2253.8,0.8042]
[1750673583120,0.14663402,2254.0,2253.8,0.8042]
[1750673583337,0.60545535,2254.3,2253.8,0.8042]
[1750673583531,0.20208848,2254.2,2253.8,0.8042]
[1750673583850,0.55,2254.0,2253.3,0.7806]
[1750673584028,0.55,2253.8,2253.3,0.7806]
[1750673584355,0.55,2253.6,2252.8,0.8196]
[1750673584572,0.55,2253.4,2252.9,0.55]
[1750673584750,0.20208023,2253.3,2252.9,0.55]
[1750673585063,0.69659837,2253.2,2252.8,0.8196]
[1750673585269,0.55,2253.2,2252.8,0.8196]
[1750673585944,0.55,2253.0,2252.8,0.8196]
[1750673586144,0.55,2253.0,2251.8,10.30981291]
[1750673586145,0.55,2253.0,2252.6,0.7972]
[1750673587474,0.55,2253.1,2252.6,0.7972]
[1750673587678,0.20198142,2253.0,2252.5,1.061511]
[1750673587846,0.55,2252.8,2252.5,1.061511]
[1750673588051,0.55,2252.6,2252.5,1.061511]
[1750673588264,0.55,2252.6,2252.1,0.7653]
[1750673588463,0.55,2252.6,2252.2,0.55]
[1750673589265,0.55,2252.8,2252.1,0.7653]
[1750673589445,0.55,2252.6,2252.1,1.3311]
[1750673589649,0.05549703,2252.5,2252.1,1.3311]
[1750673589873,0.55,2252.4,2252.1,0.7653]
[1750673590063,0.55,2252.7,2252.1,0.7653]
[1750673590258,0.20161565,2252.6,2252.1,0.7653]
[1750673590485,0.55,2252.5,2252.1,0.7653]
[1750673590687,0.55,2252.8,2252.1,0.7653]
[1750673590886,0.55,2252.8,2252.1,0.80969719]
[1750673591257,0.05549628,2252.7,2252.1,0.7653]
[1750673592400,0.55,2252.8,2252.1,0.80969697]
[1750673592603,0.05549619,2252.7,2252.1,1.3913109]
[1750673592787,0.05549619,2252.7,2252.1,0.7653]
[1750673593896,0.55,2252.8,2252.1,0.80969701]
[1750673594110,0.05549627,2252.7,2252.1,0.7653]
[1750673594291,0.55,2252.8,2252.1,0.80969687]
[1750673594973,0.5658,2253.2,2252.1,0.80969687]
[1750673595179,0.05549569,2253.0,2252.2,0.58158664]
[1750673595380,0.55,2252.9,2252.1,0.7653]
[1750673596070,0.05548811,2253.1,2252.1,0.7653]
[1750673596270,0.55,2253.0,2252.1,0.7653]
[1750673596662,0.55,2253.0,2252.2,0.04439049]
[1750673596897,0.55,2253.0,2252.3,0.7672]
[1750673597900,0.55,2253.0,2252.4,0.5658]
[1750673598407,0.05548811,2252.9,2252.4,0.5658]
[1750673599301,0.60548817,2253.1,2252.3,0.7672]
[1750673600516,0.55,2253.1,2252.4,0.04439502]
[1750673600699,0.55,2253.1,2252.5,0.8145]
[1750673600896,0.5658,2253.4,2252.5,0.8145]
[1750673601090,0.5658,2253.4,2252.6,0.04438734]
[1750673601491,0.55,2253.3,2252.6,0.04438734]
[1750673601692,0.60548489,2253.3,2252.5,0.8145]
[1750673602503,0.55,2253.1,2252.5,0.8145]
[1750673602703,0.55,2252.9,2252.5,0.8145]
[1750673603093,0.60548933,2253.1,2252.5,0.8145]
[1750673603708,0.55,2253.1,2252.5,0.8145]
[1750673604012,0.55,2252.9,2252.5,0.8145]
[1750673604390,0.55,2252.7,2252.5,0.8145]
[1750673605415,0.55,2252.9,2252.5,0.8145]
[1750673605710,0.55,2252.7,2252.5,0.8145]
[1750673605891,0.55,2253.1,2252.5,0.8145]
[1750673606486,0.55,2253.3,2252.5,0.8145]
[1750673606893,0.55,2253.3,2252.6,0.0443889]
[1750673607482,0.05548488,2253.3,2252.6,0.0443889]
[1750673607814,0.55,2253.2,2252.5,1.3803]
[1750673608116,0.05548488,2253.3,2252.5,1.3803]
[1750673608520,0.55,2253.2,2252.5,1.3803]
[1750673609818,0.05548167,2253.1,2252.5,1.3803]
[1750673610617,0.05548167,2253.1,2252.5,0.8145]
[1750673610805,0.05548167,2253.1,2252.6,1.334766]
[1750673613198,0.05548585,2253.2,2252.6,1.334766]
[1750673613527,0.27860475,2253.2,2252.6,1.334766]
[1750673615303,1.33850791,2253.2,2252.6,1.334766]
[1750673615510,0.55,2253.1,2252.6,1.334766]
[1750673615714,0.05548586,2253.0,2252.6,1.334766]
[1750673615914,0.55,2252.9,2252.5,0.8145]
[1750673616248,0.05549131,2252.8,2252.5,1.3645]
[1750673617097,0.55,2252.7,2252.5,1.3645]
[1750673617293,0.05549129,2252.6,2252.5,0.8145]
[1750673617496,0.55,2252.7,2252.5,0.8145]
[1750673617725,0.05549434,2252.6,2252.4,0.55]
[1750673617951,0.55,2252.7,2252.4,0.55]
[1750673618093,0.55,2252.7,2252.3,0.7874]
[1750673618294,0.55,2252.5,2252.3,0.7874]
[1750673618529,0.55,2252.3,2252.1,0.8298]
[1750673618733,0.55,2252.4,2252.1,0.8298]
[1750673619121,0.55,2252.6,2252.1,0.8298]
[1750673619500,0.60549937,2252.6,2252.1,0.8298]
[1750673619919,0.55,2252.6,2252.1,0.8298]
[1750673621437,0.05549942,2252.5,2252.1,0.8298]
[1750673625505,0.55,2252.6,2252.1,0.8298]
[1750673625701,0.55,2253.0,2252.3,0.8254]
[1750673626653,0.55,2252.8,2252.3,0.8254]
[1750673627027,0.55,2253.0,2252.3,0.8254]
[1750673628650,0.55,2252.8,2252.3,0.8254]
[1750673628854,0.05549517,2252.7,2252.3,0.8254]
[1750673629151,0.55,2252.6,2251.8,0.7994]
[1750673629456,0.55,2252.4,2252.0,1.059903]
[1750673629759,0.55,2252.2,2251.8,2.134677]
[1750673629916,0.55,2252.6,2251.8,2.134677]
[1750673630254,0.55,2252.6,2251.9,0.86050499]
[1750673630453,0.55,2252.4,2251.9,0.8161]
[1750673634826,1.06397336,2252.7,2252.1,0.7762]
[1750673634827,0.55,2252.7,2252.1,0.7762]
[1750673635422,0.55,2252.8,2252.1,0.7762]
[1750673636942,0.05550055,2252.7,2252.1,0.7762]
[1750673639467,11.61397336,2252.8,2252.1,0.7762]
[1750673640165,0.05550318,2252.7,2252.1,0.7762]
[1750673640842,11.61397336,2252.8,2252.1,0.7762]
[1750673641043,0.55,2252.7,2252.1,0.7762]
[1750673643883,0.14654554,2252.6,2252.1,0.7762]
[1750673644048,0.55,2252.4,2252.1,0.7762]
[1750673644249,0.14654559,2252.3,2252.1,0.7762]
[1750673644686,1.06397336,2252.7,2252.1,0.7762]
[1750673644889,0.69654669,2252.6,2252.1,0.7762]
[1750673645089,0.55,2252.4,2252.1,0.7762]
[1750673645255,0.14668253,2252.3,2252.1,0.7762]
[1750673645461,0.14668253,2252.2,2252.1,0.7762]
[1750673645789,0.69668253,2252.2,2252.1,0.7762]
[1750673645960,10.55,2252.1,2251.7,0.8039]
[1750673646162,0.55,2251.9,2251.7,0.8039]
[1750673646463,0.69668307,2251.8,2251.7,0.8039]
[1750673647193,0.69668292,2251.8,2251.7,0.8039]
[1750673647599,0.69668268,2251.8,2251.7,0.8039]
[1750673647897,0.55,2251.8,2251.7,0.8039]
[1750673648186,0.69668314,2251.8,2251.7,0.8039]
[1750673648480,0.55,2251.8,2251.7,0.8039]
[1750673649388,1.06397336,2252.2,2251.7,0.8039]
[1750673649690,10.0,2252.4,2251.4,1.335521]
[1750673649691,0.14659973,2252.1,2251.8,0.04440552]
[1750673649856,1.06397336,2252.5,2251.7,7.03672373]
[1750673650053,0.5658,2252.8,2251.9,0.8099]
[1750673650054,0.14660311,2252.4,2251.9,0.8099]
[1750673650250,0.14660311,2252.3,2251.9,0.8099]
[1750673650451,0.14659293,2252.2,2251.9,0.8099]
[1750673650651,0.14659293,2252.1,2251.9,0.8099]
[1750673650963,0.55,2252.4,2251.9,0.8099]
[1750673651309,0.05550245,2252.3,2251.9,0.8099]
[1750673651466,0.1465991,2252.2,2251.9,0.8099]
[1750673651659,0.14659907,2252.1,2251.9,0.8099]
[1750673651855,0.05550245,2252.3,2251.9,0.8099]
[1750673652199,0.14659958,2252.2,2251.9,0.8099]
[1750673652399,0.05550245,2252.3,2251.9,0.8099]
[1750673652690,0.14659967,2252.2,2252.0,0.55]
[1750673652895,0.14659967,2252.1,2252.0,0.55]
[1750673653111,0.14659955,2252.1,2252.0,0.55]
[1750673653295,0.14659955,2252.1,2251.9,0.8099]
[1750673653494,0.05550612,2252.1,2251.9,0.8099]
[1750673653654,10.0,2252.2,2251.9,0.8099]
[1750673653860,0.14658148,2252.1,2251.9,0.8099]
[1750673654074,0.55,2252.2,2251.9,0.8099]
[1750673654282,0.14658163,2252.1,2251.9,0.8099]
[1750673654483,0.055506,2252.1,2251.9,0.8099]
[1750673654815,0.60550594,2252.2,2251.9,0.8099]
[1750673654973,0.14658166,2252.1,2251.9,0.8099]
[1750673655311,0.60550594,2252.2,2251.9,0.8099]
[1750673655472,0.14656603,2252.1,2251.9,0.8099]
[1750673655668,0.60550594,2252.2,2251.9,0.8099]
[1750673655872,0.20207414,2252.1,2251.9,0.8099]
[1750673656178,0.55,2252.2,2251.9,0.8099]
[1750673656179,0.55,2252.3,2251.9,0.8099]
[1750673656419,0.20207415,2252.2,2251.9,0.8099]
[1750673656692,0.14656648,2252.1,2251.9,0.8099]
[1750673656912,0.55,2252.3,2251.9,0.8099]
[1750673657118,0.14656673,2252.2,2251.9,0.8099]
[1750673657328,0.55,2252.3,2251.9,0.8099]
[1750673657537,0.60550767,2252.3,2251.9,0.8099]
[1750673658685,0.55,2252.3,2251.9,0.8099]
[1750673660116,0.14663538,2252.2,2251.9,0.8099]
[1750673660302,0.14663551,2252.1,2251.9,0.8099]
[1750673660614,0.55,2252.5,2251.9,0.8099]
[1750673660818,0.55,2252.3,2251.9,0.8099]
[1750673660987,0.20212956,2252.2,2251.9,0.8099]
[1750673661313,0.14662414,2252.1,2251.9,0.8099]
[1750673661485,0.05550542,2252.2,2251.9,0.8099]
[1750673661818,0.14663436,2252.1,2251.9,0.8099]
[1750673662027,0.55,2252.3,2251.9,0.8099]
[1750673662187,0.2021395,2252.2,2251.9,0.8099]
[1750673662387,0.14663408,2252.1,2251.9,0.8099]
[1750673662588,0.05550542,2252.2,2251.9,0.8099]
[1750673662818,0.14663425,2252.1,2251.9,0.8099]
[1750673662987,0.05550542,2252.2,2251.9,0.8099]
[1750673663200,0.14663469,2252.1,2251.9,0.8099]
[1750673663508,0.55,2252.4,2251.9,0.8099]
[1750673663719,0.14662367,2252.3,2251.9,0.8099]
[1750673663888,0.14662367,2252.2,2251.9,0.8099]
[1750673664087,0.14662367,2252.1,2251.9,0.8099]
[1750673664283,0.55,2252.4,2251.9,0.8099]
[1750673664490,0.14663714,2252.3,2251.9,0.8099]
[1750673664719,0.55,2252.4,2251.9,0.8099]
[1750673664720,0.14663714,2252.2,2251.9,0.8099]
[1750673664895,0.14663714,2252.1,2251.9,0.8099]
[1750673665111,0.55,2252.4,2251.9,0.8099]
[1750673665310,0.14663709,2252.3,2251.9,0.8099]
[1750673665484,0.14663709,2252.2,2251.9,0.8099]
[1750673665689,0.14663709,2252.1,2251.9,0.8099]
[1750673665918,0.55,2252.4,2251.9,0.8099]
[1750673666119,0.14663709,2252.3,2251.9,0.8099]
[1750673666324,0.14663715,2252.2,2251.9,1.6198]
[1750673666620,0.55,2252.4,2251.9,1.6198]
[1750673666837,0.14664853,2252.3,2251.9,1.6198]
[1750673667009,0.14664853,2252.2,2251.9,1.6198]
[1750673667193,0.14664853,2252.1,2251.9,1.6198]
[1750673667506,0.55,2252.4,2251.9,1.6198]
[1750673667709,0.14665416,2252.3,2252.0,0.821]
[1750673667920,0.14665405,2252.2,2252.0,0.821]
[1750673668103,0.55,2252.5,2252.0,0.821]
[1750673668305,0.14665466,2252.4,2252.0,0.821]
[1750673668504,0.14665466,2252.3,2252.0,0.821]
[1750673668706,0.14665466,2252.2,2252.0,0.821]
[1750673668905,0.55,2252.5,2252.0,0.821]
[1750673669107,0.14665463,2252.4,2252.0,0.821]
[1750673669310,0.55,2252.5,2252.0,0.821]